Workbook

Sheet INFORMATION (hidden)
A1: Temporary 2023 IRR & M&I Rates Sch T-3.Z25.XLSM
A2: 01/09/2023
A3: CENTRAL VALLEY PROJECT
A4: SCHEDULE OF M&I TEMPORARY CONSTRUCTION COSTS PER ACRE FOOT
A5: 2023 SPECIAL WATER RATES
C7: SPECIAL FILE INFORMATION
C10: SOURCE DATA:
B12: SEE FLOW CHART
A19: 10/25/2022 | B19: rm | C19: Updated file names, title, headings, and date. Updated input tab links
B20: rm | C20: Verified Sch T-3 Input tab with Sch S-2 Output tab
B21: rm | C21: Verified Sch T-3 Output tab Other Costs with Sch S-2 Output tab
B22: rm | C22: Ready for review
A23: 01/09/2023 | B23: KJ | C23: Review

Sheet Flow Chart (hidden)
A1: =+Output!A2 -> Temporary 2023 IRR & M&I Rates Sch T-3.Z25.XLSM
A2: =+Output!A3 -> 01/09/2023
A3: =+Output!A4 -> CENTRAL VALLEY PROJECT
A4: =+Output!A5 -> SCHEDULE OF M&I TEMPORARY CONSTRUCTION COSTS PER ACRE FOOT
A5: =+Output!A6 -> 2023 SPECIAL WATER RATES

Sheet Input (hidden)
F7: Construction Only | H7: Interest
A9: M&I Capital Cost Per AF (including interest):
A10: 1 | B10: Sacramento, American, Stanislaus,
B11: San Joaquin Rivers & the Delta
A13: 2 | B13: Delta-Mendota Canal and Pool
A15: 3 | B15: Folsom-South Canal, Toyon Pipeline and
B16: Tehama-Colusa Canal
A18: 4 | B18: Musco Olive & Tracy Golf & Country Club
B19: (State Delta Pumping Plant)
A21: 5 | B21: Friant Dam
A23: 6 | B23: Friant-Kern & Madera Canals
A26: 7 | B26: San Luis Canal:
B27: Before Dos Amigos Pumping Plant
B28: After Dos Amigos Pumping Plant
A30: 8 | B30: Coalinga Canal
B31: (Pleasant Valley Pumping Plant)
A33: 9 | B33: San Felipe Unit:
B34: San Benito (before Coyote Pumping Plant)
B35: Santa Clara (after Coyote Pumping Plant)
A37: 10 | B37: Cross Valley Canal
B38: (State Delta Pumping Plant)
A41: Component / Facility
A43: Storage
B44: San Felipe Unit | F44: =[1]OUTPUT!$U$18 -> 0.72 | H44: =[1]OUTPUT!$W$18 -> 0.14 | J44: =F44+H44 -> 0.86
B45: All Other Contractors | F45: =[1]OUTPUT!$U$19 -> 1.1 | H45: =[1]OUTPUT!$W$19 -> 0.21 | J45: =F45+H45 -> 1.31
E46: Total Storage
A48: Conveyance
B49: Contra Costa Canal System | F49: =[2]OUTPUT!$U$25 -> 0 | H49: =[2]OUTPUT!$W$25 -> 0 | J49: =F49+H49 -> 0
B50: All Other Contractors | F50: =[1]OUTPUT!$U$26 -> 1.03 | H50: =[1]OUTPUT!$W$26 -> 0.19 | J50: 1.22
E51: Total Conveyance
A53: Conveyance Pumping
B54: Dos Amigos Pumping Plant
D55: Capital only | F55: =[1]OUTPUT!$U$33 -> 0.16 | H55: =[1]OUTPUT!$W$33 -> 0.03 | J55: =F55+H55 -> 0.19
D56: PUE only | F56: =[1]OUTPUT!$U$34 -> 0.3 | H56: =[1]OUTPUT!$W$34 -> 0.06 | J56: 0.36
F57: =SUM(F55:F56) -> 0.46 | H57: =SUM(H55:H56) -> 0.09 | J57: 0.55
B59: O'Neill P-Generator/Pumping Plant
D60: Capital only | F60: =[1]OUTPUT!$U$38 -> 0.11 | H60: =[1]OUTPUT!$W$38 -> 0.02 | J60: =F60+H60 -> 0.13
D61: PUE only | F61: =[1]OUTPUT!$U$39 -> 0.11 | H61: =[1]OUTPUT!$W$39 -> 0.02 | J61: 0.13
F62: =SUM(F60:F61) -> 0.22 | H62: =SUM(H60:H61) -> 0.04 | J62: 0.26
B64: Jones Pumping Plant
C65: Friant Kern/Madera
D66: Capital only | F66: =[1]OUTPUT!$U$44 -> 0.22 | H66: =[1]OUTPUT!$W$44 -> 0.04 | J66: =F66+H66 -> 0.26
D67: PUE only | F67: =[1]OUTPUT!$U$45 -> 0.55 | H67: =[1]OUTPUT!$W$45 -> 0.1 | J67: 0.65
F68: =SUM(F66:F67) -> 0.77 | H68: =SUM(H66:H67) -> 0.14 | J68: 0.91
C70: All Other Contractors
D71: Capital only | F71: =[1]OUTPUT!$U$49 -> 0.18 | H71: =[1]OUTPUT!$W$49 -> 0.03 | J71: =F71+H71 -> 0.21
D72: PUE only | F72: =[1]OUTPUT!$U$50 -> 0.45 | H72: =[1]OUTPUT!$W$50 -> 0.09 | J72: 0.54
F73: =SUM(F71:F72) -> 0.63 | H73: =SUM(H71:H72) -> 0.12 | J73: 0.75
A75: Direct Pumping
B76: Bella Vista WD (Wintu PP) | F76: =[1]OUTPUT!$U$59 -> 1.52 | H76: =[1]OUTPUT!$W$59 -> 0.29 | J76: =F76+H76 -> 1.81
B77: Colusa County WD Relift PP | F77: =[1]OUTPUT!$U$60 -> 1.9 | H77: =[1]OUTPUT!$W$60 -> 0.36 | J77: 2.26
B78: Contra Costa PP (Contra Costa WD) | F78: =[1]OUTPUT!$U$61 -> 0.41 | H78: =[1]OUTPUT!$W$61 -> 0.08 | J78: 0.49
B79: Kanawha WD | F79: =[1]OUTPUT!$U$62 -> 0.39 | H79: =[1]OUTPUT!$W$62 -> 0.07 | J79: 0.46
B80: Pleasant Valley PP (City of Coalinga) | F80: =[1]OUTPUT!$U$63 -> 0.06 | H80: =[1]OUTPUT!$W$63 -> 0.01 | J80: 0.07
B81: Pleasant Valley WD Canalside Relift PP | F81: =[1]OUTPUT!$U$64 -> 0.24 | H81: =[1]OUTPUT!$W$64 -> 0.05 | J81: 0.29
B82: San Benito County WD
C83: Pacheco PP
C84: Gianelli, WR PGP
E85: Total San Benito County WD | F85: =[1]OUTPUT!$U$68 -> 0.76 | H85: =[1]OUTPUT!$W$68 -> 0.14 | J85: =F85+H85 -> 0.9
B87: San Luis WD Canalside Relift PP | F87: =[1]OUTPUT!$U$70 -> 1.09 | H87: =[1]OUTPUT!$W$70 -> 0.21 | J87: =F87+H87 -> 1.3
B88: Santa Clara Valley WD
C89: Coyote PP
C90: Pacheco PP
C91: Gianelli, WR PGP
E92: Total Santa Clara WD | F92: =[1]OUTPUT!$U$75 -> 1.15 | H92: =[1]OUTPUT!$W$75 -> 0.22 | J92: =F92+H92 -> 1.37
B94: Shasta Pumping Plant (City of Shasta Lake) | F94: =[1]OUTPUT!$U$78 -> 3.28 | H94: =[1]OUTPUT!$W$78 -> 0.62 | J94: =F94+H94 -> 3.9
B95: State Delta PP (Cross Valley Canal) | F95: =[1]OUTPUT!$U$79 -> 0.37 | H95: =[1]OUTPUT!$W$79 -> 0.07 | J95: 0.44
B96: Westlands WD Relifts | F96: =[1]OUTPUT!$U$80 -> 1.89 | H96: =[1]OUTPUT!$W$80 -> 0.36 | J96: 2.25
E97: Total Direct Pumping
A99: Other Costs
B100: Deferred Interest Capitalized
B101: Programmatic EIS Capitalized
B102: All others
E103: Total Other Costs | F103: =[1]OUTPUT!$U$89 -> 0.61 | H103: =[1]OUTPUT!$W$89 -> 0.12 | J103: =F103+H103 -> 0.73

Sheet Output
A2: =INFORMATION!A1 -> Temporary 2023 IRR & M&I Rates Sch T-3.Z25.XLSM
A3: =INFORMATION!A2 -> 01/09/2023
A4: =INFORMATION!A3 -> CENTRAL VALLEY PROJECT
A5: =INFORMATION!A4 -> SCHEDULE OF M&I TEMPORARY CONSTRUCTION COSTS PER ACRE FOOT
A6: =INFORMATION!A5 -> 2023 SPECIAL WATER RATES
A7: Category | B7: A) Service Area / Contractor | C7: Related Footnotes | D7: B) Other Cost <Sch S-2> | E7: C) Storage <Sch S-2> | F7: D) Conveyance <Sch S-2> | G7: E) Conveyance Pumping: Jones Pumping Plant Friant-Kern Madera <Sch S-2> | H7: F) Conveyance Pumping: Jones Pumping Plant All Others <Sch S-2> | I7: G) Conveyance Pumping: O'Neill PG <Sch S-2> | J7: H) Conveyance Pumping: Dos Amigos PP <Sch S-2> | K7: I) Direct Pumping <Sch S-2> | L7: Total =SUM(B:I)
A8: M&I Construction Cost Per AF (including interest) | B8: Sacramento, American, Stanislaus, San Joaquin Rivers & the Delta | C8: - | D8: =+D20+D32 -> 0.73 | E8: 1.31 | F8: 0 | G8: 0 | H8: 0 | I8: 0 | J8: 0 | K8: 0 | L8: =SUM(D8:K8) -> 2.04
A9: M&I Construction Cost Per AF (including interest) | B9: Delta-Mendota Canal and Pool | C9: - | D9: 0.73 | E9: 1.31 | F9: =+F21+F33 -> 1.22 | G9: 0 | H9: =+H21+H33 -> 0.75 | I9: 0 | J9: 0 | K9: 0 | L9: 4.01
A10: M&I Construction Cost Per AF (including interest) | B10: Folsom-South Canal, Toyon Pipeline and Tehama-Colusa Canal | C10: - | D10: 0.73 | E10: 1.31 | F10: =+F22+F34 -> 1.22 | G10: 0 | H10: 0 | I10: 0 | J10: 0 | K10: 0 | L10: 3.26
A11: M&I Construction Cost Per AF (including interest) | B11: Musco Olive & Tracy Golf & Country Club (State Delta Pumping Plant) | C11: 1/ | D11: 0.73 | E11: 1.31 | F11: 0 | G11: 0 | H11: 0 | I11: 0 | J11: 0 | K11: =+K23+K35 -> 0.44 | L11: 2.48
A12: M&I Construction Cost Per AF (including interest) | B12: Friant Dam | C12: - | D12: 0.73 | E12: 1.31 | F12: 0 | G12: =+G24+G36 -> 0.91 | H12: 0 | I12: 0 | J12: 0 | K12: 0 | L12: 2.95
A13: M&I Construction Cost Per AF (including interest) | B13: Friant-Kern & Madera Canals | C13: - | D13: 0.73 | E13: 1.31 | F13: =+F25+F37 -> 1.22 | G13: =+G25+G37 -> 0.91 | H13: 0 | I13: 0 | J13: 0 | K13: 0 | L13: 4.17
A14: M&I Construction Cost Per AF (including interest) | B14: San Luis Canal: Before Dos Amigos Pumping Plant | C14: - | D14: 0.73 | E14: 1.31 | F14: 1.22 | G14: 0 | H14: =+H26+H38 -> 0.75 | I14: 0.26 | J14: 0 | K14: 0 | L14: 4.27
A15: M&I Construction Cost Per AF (including interest) | B15: San Luis Canal: After Dos Amigos Pumping Plant | C15: - | D15: 0.73 | E15: 1.31 | F15: 1.22 | G15: 0 | H15: 0.75 | I15: 0.26 | J15: =+J27+J39 -> 0.55 | K15: 0 | L15: 4.82
A16: M&I Construction Cost Per AF (including interest) | B16: Coalinga Canal (Pleasant Valley Pumping Plant) | C16: 2/ | D16: 0.73 | E16: 1.31 | F16: 1.22 | G16: 0 | H16: 0.75 | I16: 0.26 | J16: =+J28+J40 -> 0.55 | K16: =+K28+K40 -> 0.36 | L16: 5.18
A17: M&I Construction Cost Per AF (including interest) | B17: San Felipe Unit: San Benito (before Coyote Pumping Plant) | C17: 3/ | D17: 0.73 | E17: 0.86 | F17: 1.22 | G17: 0 | H17: 0.75 | I17: 0.26 | J17: 0 | K17: =+K29+K41 -> 0.9 | L17: 4.72
A18: M&I Construction Cost Per AF (including interest) | B18: San Felipe Unit: Santa Clara (after Coyote Pumping Plant) | C18: 4/ | D18: 0.73 | E18: 0.86 | F18: 1.22 | G18: 0 | H18: 0.75 | I18: 0.26 | J18: 0 | K18: =+K30+K42 -> 1.37 | L18: 5.19
A19: M&I Construction Cost Per AF (including interest) | B19: Cross Valley Canal (State Delta Pumping Plant) | C19: 5/ | D19: 0.73 | E19: 1.31 | F19: 0 | G19: 0 | H19: 0 | I19: 0 | J19: =+J31+J43 -> 0.36 | K19: =+K31+K43 -> 0.44 | L19: 2.84
A20: M&I Construction Costs Per AF (excluding interest) | B20: Sacramento, American, Stanislaus, San Joaquin Rivers & the Delta | C20: - | D20: =Input!F103 -> 0.61 | E20: =Input!F45 -> 1.1 | F20: 0 | G20: 0 | H20: 0 | I20: 0 | J20: 0 | K20: 0 | L20: 1.71
A21: M&I Construction Costs Per AF (excluding interest) | B21: Delta-Mendota Canal and Pool | C21: - | D21: =Input!F103 -> 0.61 | E21: =Input!F45 -> 1.1 | F21: =Input!F50 -> 1.03 | G21: 0 | H21: =Input!F73 -> 0.63 | I21: 0 | J21: 0 | K21: 0 | L21: 3.37
A22: M&I Construction Costs Per AF (excluding interest) | B22: Folsom-South Canal, Toyon Pipeline and Tehama-Colusa Canal | C22: - | D22: =Input!F103 -> 0.61 | E22: =Input!F45 -> 1.1 | F22: =Input!F50 -> 1.03 | G22: 0 | H22: 0 | I22: 0 | J22: 0 | K22: 0 | L22: 2.74
A23: M&I Construction Costs Per AF (excluding interest) | B23: Musco Olive & Tracy Golf & Country Club (State Delta Pumping Plant) | C23: 1/ | D23: =Input!F103 -> 0.61 | E23: =Input!F45 -> 1.1 | F23: 0 | G23: 0 | H23: 0 | I23: 0 | J23: 0 | K23: =Input!F95 -> 0.37 | L23: 2.08
A24: M&I Construction Costs Per AF (excluding interest) | B24: Friant Dam | C24: - | D24: =Input!F103 -> 0.61 | E24: =Input!F45 -> 1.1 | F24: 0 | G24: =Input!F68 -> 0.77 | H24: 0 | I24: 0 | J24: 0 | K24: 0 | L24: 2.48
A25: M&I Construction Costs Per AF (excluding interest) | B25: Friant-Kern & Madera Canals | C25: - | D25: =Input!F103 -> 0.61 | E25: =Input!F45 -> 1.1 | F25: =Input!F50 -> 1.03 | G25: =Input!F68 -> 0.77 | H25: 0 | I25: 0 | J25: 0 | K25: 0 | L25: 3.51
A26: M&I Construction Costs Per AF (excluding interest) | B26: San Luis Canal: Before Dos Amigos Pumping Plant | C26: - | D26: =Input!F103 -> 0.61 | E26: =Input!F45 -> 1.1 | F26: =Input!F50 -> 1.03 | G26: 0 | H26: =Input!F73 -> 0.63 | I26: =Input!F62 -> 0.22 | J26: 0 | K26: 0 | L26: 3.59
A27: M&I Construction Costs Per AF (excluding interest) | B27: San Luis Canal: After Dos Amigos Pumping Plant | C27: - | D27: =Input!F103 -> 0.61 | E27: =Input!F45 -> 1.1 | F27: =Input!F50 -> 1.03 | G27: 0 | H27: =Input!F73 -> 0.63 | I27: =Input!F62 -> 0.22 | J27: =Input!F57 -> 0.46 | K27: 0 | L27: 4.05
A28: M&I Construction Costs Per AF (excluding interest) | B28: Coalinga Canal (Pleasant Valley Pumping Plant) | C28: 2/ | D28: =Input!F103 -> 0.61 | E28: =Input!F45 -> 1.1 | F28: =Input!F50 -> 1.03 | G28: 0 | H28: =Input!F73 -> 0.63 | I28: =Input!F62 -> 0.22 | J28: =Input!F57 -> 0.46 | K28: =Input!F80+Input!F81 -> 0.3 | L28: 4.35
A29: M&I Construction Costs Per AF (excluding interest) | B29: San Felipe Unit: San Benito (before Coyote Pumping Plant) | C29: 3/ | D29: =Input!F103 -> 0.61 | E29: =Input!F44 -> 0.72 | F29: =Input!F50 -> 1.03 | G29: 0 | H29: =Input!F73 -> 0.63 | I29: =Input!F62 -> 0.22 | J29: 0 | K29: =Input!F85 -> 0.76 | L29: 3.97
A30: M&I Construction Costs Per AF (excluding interest) | B30: San Felipe Unit: Santa Clara (after Coyote Pumping Plant) | C30: 4/ | D30: =Input!F103 -> 0.61 | E30: =Input!F44 -> 0.72 | F30: =Input!F50 -> 1.03 | G30: 0 | H30: =Input!F73 -> 0.63 | I30: =Input!F62 -> 0.22 | J30: 0 | K30: =Input!F92 -> 1.15 | L30: 4.36
A31: M&I Construction Costs Per AF (excluding interest) | B31: Cross Valley Canal (State Delta Pumping Plant) | C31: 5/ | D31: =Input!F103 -> 0.61 | E31: =Input!F45 -> 1.1 | F31: 0 | G31: 0 | H31: 0 | I31: 0 | J31: =Input!F56 -> 0.3 | K31: =Input!F95 -> 0.37 | L31: 2.38
A32: M&I Construction Interest Costs Per AF | B32: Sacramento, American, Stanislaus, San Joaquin Rivers & the Delta | C32: - | D32: =Input!H103 -> 0.12 | E32: =Input!H45 -> 0.21 | F32: 0 | G32: 0 | H32: 0 | I32: 0 | J32: 0 | K32: 0 | L32: 0.33
A33: M&I Construction Interest Costs Per AF | B33: Delta-Mendota Canal and Pool | C33: - | D33: =Input!H103 -> 0.12 | E33: =Input!H45 -> 0.21 | F33: =Input!H50 -> 0.19 | G33: 0 | H33: =Input!H73 -> 0.12 | I33: 0 | J33: 0 | K33: 0 | L33: 0.64
A34: M&I Construction Interest Costs Per AF | B34: Folsom-South Canal, Toyon Pipeline and Tehama-Colusa Canal | C34: - | D34: =Input!H103 -> 0.12 | E34: =Input!H45 -> 0.21 | F34: =Input!H50 -> 0.19 | G34: 0 | H34: 0 | I34: 0 | J34: 0 | K34: 0 | L34: 0.52
A35: M&I Construction Interest Costs Per AF | B35: Musco Olive & Tracy Golf & Country Club (State Delta Pumping Plant) | C35: 1/ | D35: =Input!H103 -> 0.12 | E35: =Input!H45 -> 0.21 | F35: 0 | G35: 0 | H35: 0 | I35: 0 | J35: 0 | K35: =Input!H95 -> 0.07 | L35: 0.4
A36: M&I Construction Interest Costs Per AF | B36: Friant Dam | C36: - | D36: =Input!H103 -> 0.12 | E36: =Input!H45 -> 0.21 | F36: 0 | G36: =Input!H68 -> 0.14 | H36: 0 | I36: 0 | J36: 0 | K36: 0 | L36: 0.47
A37: M&I Construction Interest Costs Per AF | B37: Friant-Kern & Madera Canals | C37: - | D37: =Input!H103 -> 0.12 | E37: =Input!H45 -> 0.21 | F37: =Input!H50 -> 0.19 | G37: =Input!H68 -> 0.14 | H37: 0 | I37: 0 | J37: 0 | K37: 0 | L37: 0.66
A38: M&I Construction Interest Costs Per AF | B38: San Luis Canal: Before Dos Amigos Pumping Plant | C38: - | D38: =Input!H103 -> 0.12 | E38: =Input!H45 -> 0.21 | F38: =Input!H50 -> 0.19 | G38: 0 | H38: =Input!H73 -> 0.12 | I38: =Input!H62 -> 0.04 | J38: 0 | K38: 0 | L38: 0.68
A39: M&I Construction Interest Costs Per AF | B39: San Luis Canal: After Dos Amigos Pumping Plant | C39: - | D39: =Input!H103 -> 0.12 | E39: =Input!H45 -> 0.21 | F39: =Input!H50 -> 0.19 | G39: 0 | H39: =Input!H73 -> 0.12 | I39: =Input!H62 -> 0.04 | J39: =Input!H57 -> 0.09 | K39: 0 | L39: 0.77
A40: M&I Construction Interest Costs Per AF | B40: Coalinga Canal (Pleasant Valley Pumping Plant) | C40: 2/ | D40: =Input!H103 -> 0.12 | E40: =Input!H45 -> 0.21 | F40: =Input!H50 -> 0.19 | G40: 0 | H40: =Input!H73 -> 0.12 | I40: =Input!H62 -> 0.04 | J40: =Input!H57 -> 0.09 | K40: =Input!H80+Input!H81 -> 0.06 | L40: 0.83
A41: M&I Construction Interest Costs Per AF | B41: San Felipe Unit: San Benito (before Coyote Pumping Plant) | C41: 3/ | D41: =Input!H103 -> 0.12 | E41: =Input!H44 -> 0.14 | F41: =Input!H50 -> 0.19 | G41: 0 | H41: =Input!H73 -> 0.12 | I41: =Input!H62 -> 0.04 | J41: 0 | K41: =Input!H85 -> 0.14 | L41: 0.75
A42: M&I Construction Interest Costs Per AF | B42: San Felipe Unit: Santa Clara (after Coyote Pumping Plant) | C42: 4/ | D42: =Input!H103 -> 0.12 | E42: =Input!H44 -> 0.14 | F42: =Input!H50 -> 0.19 | G42: 0 | H42: =Input!H73 -> 0.12 | I42: =Input!H62 -> 0.04 | J42: 0 | K42: =Input!H92 -> 0.22 | L42: 0.83
A43: M&I Construction Interest Costs Per AF | B43: Cross Valley Canal (State Delta Pumping Plant) | C43: 5/ | D43: =Input!H103 -> 0.12 | E43: =Input!H45 -> 0.21 | F43: 0 | G43: 0 | H43: 0 | I43: 0 | J43: =Input!H56 -> 0.06 | K43: =Input!H95 -> 0.07 | L43: 0.46

Sheet Footnotes
A1: =INFORMATION!A1 -> Temporary 2023 IRR & M&I Rates Sch T-3.Z25.XLSM
A2: =INFORMATION!A2 -> 01/09/2023
A3: =INFORMATION!A3 -> CENTRAL VALLEY PROJECT
A4: =INFORMATION!A4 -> SCHEDULE OF M&I TEMPORARY CONSTRUCTION COSTS PER ACRE FOOT
A5: =INFORMATION!A5 -> 2023 SPECIAL WATER RATES
A7: Footnotes:
A8: 1/ | B8: Storage and project use energy at State-Delta Pumping Plant
A9: 2/ | B9: Direct Pumping from Pleasant Valley Pumping Plant (City of Coalinga).
A10: 3/ | B10: Direct Pumping from Wm. R. Gianelli Pump/Generator and Pacheco PP
A11: 4/ | B11: Direct Pumping from W.R. Gianelli Pump/Generator, Pacheco PP, and Coyote PP
A12: 5/ | B12: Effective March 1, 1996, Cross Valley Canal contract water is pumped and delivered through the State and/or State's side of joint-use facilities. Therefore, (1) these contractors will no longer be allocated Conveyance costs; and (2) Conveyance Pumping and Direct Pumping costs will be limited to Project Use Energy only.
